[Event "II Open Internacional Ateneo Marítimo (60 Aniversario)"]
[Site "C/La reina 68 (Valencia), Spain"]
[Date "2018.09.15"]
[Round "3.6"]
[White "Nieves Cabanes, Jose Manuel"]
[Black "Fenollar Jorda, Manuel"]
[Result "1-0"]
[TimeControl "7m+3s por jugada"]
[WhiteFideId "22245715"]
[BlackFideId "2217104"]
[WhiteElo "2278"]
[BlackElo "2342"]

1. Nf3 {[%clk 00:07:03]} {[%emt 00:00:50]} d5 {[%clk 00:07:03]} 2. c4 {[%clk
00:07:03]} c6 {[%clk 00:07:03]} 3. e3 {[%clk 00:07:03]} Nf6 {[%clk 00:07:03]} 4.
Nc3 {[%clk 00:07:03]} Nbd7 {[%clk 00:07:03]} 5. Qc2 {[%clk 00:06:52]} a6 {[%clk
00:07:00]} 6. b3 {[%clk 00:06:38]} {[%emt 00:00:08]} e5 {[%clk 00:06:56]}
{[%emt 00:00:07]} 7. Bb2 {[%clk 00:06:34]} {[%emt 00:00:16]} Bd6 {[%clk
00:06:44]} {[%emt 00:00:04]} 8. d3 {[%clk 00:06:28]} {[%emt 00:00:07]} O-O
{[%clk 00:06:40]} {[%emt 00:00:08]} 9. Be2 {[%clk 00:06:28]} b5 {[%clk
00:06:29]} {[%emt 00:00:16]} 10. e4 {[%clk 00:06:10]} {[%emt 00:00:25]} bxc4
{[%clk 00:05:22]} {[%emt 00:01:02]} 11. bxc4 {[%clk 00:06:08]} {[%emt
00:00:56]} d4 {[%clk 00:05:22]} 12. Nb1 {[%clk 00:05:48]} Rb8 {[%clk 00:05:02]}
13. O-O {[%clk 00:05:36]} {[%emt 00:00:12]} Qb6 {[%clk 00:04:42]} {[%emt
00:00:23]} 14. Ba3 {[%clk 00:04:47]} {[%emt 00:01:00]} Bxa3 {[%clk 00:04:16]}
{[%emt 00:00:54]} 15. Nxa3 {[%clk 00:04:47]} Qb2 {[%clk 00:04:16]} 16. Qxb2
{[%clk 00:04:02]} {[%emt 00:00:19]} Rxb2 {[%clk 00:04:16]} {[%emt 00:00:17]} 17.
Rfe1 {[%clk 00:03:53]} Re8 {[%clk 00:03:25]} {[%emt 00:00:51]} 18. c5 {[%clk
00:03:41]} {[%emt 00:00:15]} Rb4 {[%clk 00:02:05]} {[%emt 00:01:29]} 19. Nc4
{[%clk 00:03:15]} {[%emt 00:00:35]} Rxc4 {[%clk 00:01:58]} {[%emt 00:00:03]} 20.
dxc4 {[%clk 00:03:12]} {[%emt 00:00:03]} Nxc5 {[%clk 00:01:58]} {[%emt
00:00:07]} 21. Rab1 {[%clk 00:02:34]} {[%emt 00:00:35]} Nfxe4 {[%clk 00:01:49]}
{[%emt 00:00:11]} 22. Rb8 {[%clk 00:02:09]} {[%emt 00:00:29]} f6 {[%clk
00:01:42]} {[%emt 00:00:30]} 23. Nxd4 {[%clk 00:01:10]} {[%emt 00:00:49]} Nd7
{[%clk 00:00:20]} {[%emt 00:01:25]} 24. Rxc8 {[%clk 00:00:36]} {[%emt
00:01:07]} Rxc8 {[%clk 00:00:20]} 25. Bg4 {[%clk 00:00:36]} Nec5 {[%clk
00:00:13]} 26. Nb3 {[%clk 00:00:18]} {[%emt 00:00:11]} Rb8 {[%clk 00:00:10]} 27.
Na5 {[%clk 00:00:18]} Rb2 {[%clk 00:00:10]} {[%emt 00:00:03]} 28. Nxc6 {[%clk
00:00:14]} {[%emt 00:00:07]} Rxa2 {[%clk 00:00:09]} 29. g3 {[%clk 00:00:10]}
{[%emt 00:00:12]} Kf7 {[%clk 00:00:08]} 30. Rd1 {[%clk 00:00:10]} {[%emt
00:00:03]} Nb6 {[%clk 00:00:08]} {[%emt 00:00:06]} 31. Nd8+ {[%clk 00:00:10]}
Kg6 {[%clk 00:00:08]} 32. h4 {[%clk 00:00:10]} {[%emt 00:00:07]} h5 {[%clk
00:00:08]} 33. Bf3 {[%clk 00:00:10]} Nb3 {[%clk 00:00:08]} {[%emt 00:00:11]} 34.
Be4+ {[%clk 00:00:07]} {[%emt 00:00:04]} f5 {[%clk 00:00:08]} 35. Bd5 {[%clk
00:00:07]} Ra1 {[%clk 00:00:07]} {[%emt 00:00:03]} 36. Rxa1 {[%clk 00:00:06]}
{[%emt 00:00:15]} Nxa1 {[%clk 00:00:07]} 37. Bf7+ {[%clk 00:00:06]} Kf6 {[%clk
00:00:07]} 38. c5 {[%clk 00:00:06]} Na4 {[%clk 00:00:04]} {[%emt 00:00:06]} 39.
c6 {[%clk 00:00:06]} Ke7 {[%clk 00:00:04]} 40. c7 {[%clk 00:00:04]} {[%emt
00:00:04]} Kd7 {[%clk 00:00:04]} {[%emt 00:00:07]} 41. Bxh5 {[%clk 00:00:04]}
Kxc7 {[%clk 00:00:04]} 42. Ne6+ {[%clk 00:00:04]} Kd6 {[%clk 00:00:04]} 43.
Nxg7 {[%clk 00:00:04]} f4 {[%clk 00:00:04]} 44. gxf4 {[%clk 00:00:04]} {[%emt
00:00:19]} exf4 {[%clk 00:00:04]} 45. Be2 {[%clk 00:00:04]} a5 {[%clk
00:00:04]} 46. h5 {[%clk 00:00:04]} Ke7 47. h6 1-0

[Event "II Open Internacional Ateneo Marítimo (60 Aniversario)"]
[Site "C/La reina 68 (Valencia), Spain"]
[Date "2018.09.15"]
[Round "3.7"]
[White "Valmana Canto, Jaime"]
[Black "Campos Aucejo, Vicente"]
[Result "1-0"]
[TimeControl "7m+3s por jugada"]
[WhiteFideId "2268990"]
[BlackFideId "2201330"]
[WhiteElo "2340"]
[BlackElo "1973"]

1. e4 {[%clk 00:07:03]} {[%emt 00:00:05]} c6 {[%clk 00:06:58]} {[%emt
00:00:06]} 2. Nc3 {[%clk 00:07:01]} {[%emt 00:00:08]} g6 {[%clk 00:06:53]}
{[%emt 00:00:09]} 3. d4 {[%clk 00:06:39]} {[%emt 00:00:24]} d6 {[%clk
00:06:46]} {[%emt 00:00:06]} 4. Nf3 {[%clk 00:06:32]} {[%emt 00:00:11]} Bg7
{[%clk 00:06:47]} {[%emt 00:00:03]} 5. Be2 {[%clk 00:06:30]} {[%emt 00:00:07]}
Nf6 {[%clk 00:06:38]} {[%emt 00:00:26]} 6. O-O {[%clk 00:06:27]} O-O {[%clk
00:06:33]} {[%emt 00:00:18]} 7. h3 {[%clk 00:06:20]} b5 {[%clk 00:06:20]}
{[%emt 00:00:07]} 8. e5 {[%clk 00:06:14]} {[%emt 00:00:05]} Ne8 {[%clk
00:06:12]} {[%emt 00:00:36]} 9. Bf4 {[%clk 00:06:04]} {[%emt 00:00:03]} b4
{[%clk 00:05:53]} {[%emt 00:00:10]} 10. Ne4 {[%clk 00:06:03]} {[%emt 00:00:03]}
d5 {[%clk 00:05:29]} {[%emt 00:00:24]} 11. Nc5 {[%clk 00:05:57]} {[%emt
00:00:15]} a5 {[%clk 00:05:20]} {[%emt 00:00:06]} 12. a3 {[%clk 00:05:53]}
{[%emt 00:00:13]} bxa3 {[%clk 00:05:04]} {[%emt 00:00:22]} 13. Rxa3 {[%clk
00:05:54]} Na6 {[%clk 00:04:35]} {[%emt 00:00:36]} 14. Nxa6 {[%clk 00:05:10]}
{[%emt 00:00:56]} Bxa6 {[%clk 00:04:36]} 15. Bxa6 {[%clk 00:05:12]} Rxa6 {[%clk
00:04:38]} 16. Qd2 {[%clk 00:05:13]} Nc7 {[%clk 00:03:27]} {[%emt 00:01:15]} 17.
Rfa1 {[%clk 00:05:14]} Ne6 {[%clk 00:03:12]} {[%emt 00:00:14]} 18. Be3 {[%clk
00:05:10]} Qb6 {[%clk 00:02:35]} {[%emt 00:00:38]} 19. b4 {[%clk 00:05:11]}
{[%emt 00:00:33]} Rfa8 {[%clk 00:02:24]} {[%emt 00:00:10]} 20. Rxa5 {[%clk
00:05:03]} Qb7 {[%clk 00:02:12]} {[%emt 00:00:03]} 21. Qd3 {[%clk 00:04:18]}
{[%emt 00:00:42]} Nc7 {[%clk 00:02:00]} {[%emt 00:00:30]} 22. Nd2 {[%clk
00:03:06]} {[%emt 00:01:01]} e6 {[%clk 00:01:48]} {[%emt 00:00:16]} 23. Nb3
{[%clk 00:03:02]} {[%emt 00:00:23]} Bf8 {[%clk 00:01:37]} {[%emt 00:00:13]} 24.
c3 {[%clk 00:03:02]} Rxa5 {[%clk 00:01:12]} {[%emt 00:00:53]} 25. Nxa5 {[%clk
00:02:57]} Qb5 {[%clk 00:01:04]} {[%emt 00:00:12]} 26. Qd1 {[%clk 00:02:32]}
{[%emt 00:00:04]} Be7 {[%clk 00:00:55]} {[%emt 00:00:32]} 27. g3 {[%clk
00:02:33]} Bf8 {[%clk 00:00:35]} {[%emt 00:00:03]} 28. h4 {[%clk 00:02:34]} h5
{[%clk 00:00:36]} 29. Bg5 {[%clk 00:02:21]} {[%emt 00:00:14]} Ne8 {[%clk
00:00:23]} {[%emt 00:00:21]} 30. Kg2 {[%clk 00:01:53]} {[%emt 00:00:29]} c5
{[%clk 00:00:19]} {[%emt 00:00:07]} 31. dxc5 {[%clk 00:01:37]} {[%emt
00:00:20]} Bxc5 {[%clk 00:00:20]} {[%emt 00:00:08]} 32. Nb3 {[%clk 00:01:30]}
{[%emt 00:00:04]} Rxa1 {[%clk 00:00:14]} {[%emt 00:00:05]} 33. Qxa1 {[%clk
00:01:31]} {[%emt 00:00:15]} Bb6 {[%clk 00:00:14]} 34. Qa8 {[%clk 00:01:27]}
Kh7 {[%clk 00:00:13]} {[%emt 00:00:10]} 35. Qb7 {[%clk 00:01:05]} {[%emt
00:00:17]} Kg8 {[%clk 00:00:10]} {[%emt 00:00:57]} 36. Qb8 {[%clk 00:01:06]}
Kh7 {[%clk 00:00:10]} 37. Nd4 {[%clk 00:01:05]} Qa6 {[%clk 00:00:09]} 38. Qxe8
{[%clk 00:01:05]} 1-0

[Event "II Open Internacional Ateneo Marítimo (60 Aniversario)"]
[Site "C/La reina 68 (Valencia), Spain"]
[Date "2018.09.15"]
[Round "4.1"]
[White "Nieves Cabanes, Jose Manuel"]
[Black "Plaskett, H James"]
[Result "0-1"]
[TimeControl "7m+3s por jugada"]
[WhiteFideId "22245715"]
[BlackFideId "400238"]
[WhiteElo "2278"]
[BlackElo "2450"]

1. Nf3 {[%clk 00:07:04]} {[%emt 00:00:04]} Nf6 {[%clk 00:07:04]} 2. c4 {[%clk
00:07:06]} c5 {[%clk 00:06:58]} {[%emt 00:00:12]} 3. g3 {[%clk 00:07:08]} e6
{[%clk 00:06:56]} {[%emt 00:00:03]} 4. Bg2 {[%clk 00:07:08]} {[%emt 00:00:14]}
d5 {[%clk 00:06:59]} 5. cxd5 {[%clk 00:07:08]} {[%emt 00:00:04]} Nxd5 {[%clk
00:07:01]} 6. O-O {[%clk 00:07:06]} Nc6 {[%clk 00:07:03]} 7. Nc3 {[%clk
00:06:56]} {[%emt 00:00:23]} Be7 {[%clk 00:07:03]} 8. b3 {[%clk 00:06:52]} O-O
{[%clk 00:06:53]} {[%emt 00:00:21]} 9. Bb2 {[%clk 00:06:53]} Bf6 {[%clk
00:06:38]} {[%emt 00:00:04]} 10. Qc1 {[%clk 00:06:46]} {[%emt 00:00:16]} Nxc3
{[%clk 00:06:03]} {[%emt 00:00:32]} 11. Bxc3 {[%clk 00:06:47]} {[%emt
00:00:26]} e5 {[%clk 00:06:05]} 12. Qb2 {[%clk 00:06:05]} {[%emt 00:00:22]} Nd4
{[%clk 00:05:17]} {[%emt 00:00:50]} 13. d3 {[%clk 00:06:05]} {[%emt 00:00:23]}
Bg4 {[%clk 00:05:18]} 14. Rfe1 {[%clk 00:05:19]} {[%emt 00:00:33]} Qd7 {[%clk
00:04:40]} {[%emt 00:00:43]} 15. b4 {[%clk 00:05:01]} {[%emt 00:00:22]} Bxf3
{[%clk 00:04:14]} {[%emt 00:00:47]} 16. exf3 {[%clk 00:05:01]} cxb4 {[%clk
00:03:54]} {[%emt 00:00:11]} 17. Bxb4 {[%emt 00:00:30]} e4 {[%clk 00:03:37]} 18.
Bc3 {[%clk 00:04:16]} {[%emt 00:00:34]} exf3 {[%clk 00:02:53]} {[%emt
00:00:58]} 19. Bf1 {[%clk 00:04:01]} {[%emt 00:00:11]} Rac8 {[%clk 00:02:48]}
{[%emt 00:00:05]} 20. Rac1 {[%clk 00:03:50]} {[%emt 00:00:50]} Rfe8 {[%clk
00:01:42]} {[%emt 00:00:46]} 21. Bxd4 {[%clk 00:03:04]} {[%emt 00:00:35]} Bxd4
{[%clk 00:01:44]} {[%emt 00:00:21]} 22. Rxc8 {[%clk 00:03:02]} Rxc8 {[%clk
00:01:42]} {[%emt 00:00:05]} 23. Qb3 {[%clk 00:02:53]} g6 {[%clk 00:01:32]}
{[%emt 00:00:13]} 24. Re4 {[%clk 00:02:37]} {[%emt 00:00:18]} Rc1 {[%clk
00:01:20]} {[%emt 00:00:37]} 25. Rf4 {[%clk 00:02:25]} Kg7 {[%clk 00:01:07]}
{[%emt 00:00:15]} 26. Rxf3 {[%clk 00:02:19]} {[%emt 00:00:04]} b5 {[%clk
00:01:08]} 27. Kg2 {[%clk 00:02:07]} {[%emt 00:00:14]} a5 {[%clk 00:01:10]}
{[%emt 00:00:12]} 28. Be2 {[%clk 00:01:39]} {[%emt 00:00:23]} a4 {[%clk
00:01:12]} 29. Qa3 {[%clk 00:01:34]} {[%emt 00:00:15]} Rc2 {[%clk 00:01:09]} 30.
Qb4 {[%clk 00:00:29]} {[%emt 00:01:08]} Rxe2 {[%clk 00:01:08]} {[%emt
00:00:04]} 31. Rf4 {[%clk 00:00:29]} {[%emt 00:00:04]} Qd5+ {[%clk 00:01:07]}
{[%emt 00:00:08]} 32. Kh3 {[%clk 00:00:24]} {[%emt 00:00:04]} Rxf2 {[%clk
00:01:01]} {[%emt 00:00:10]} 0-1

[Event "II Open Internacional Ateneo Marítimo (60 Aniversario)"]
[Site "C/La reina 68 (Valencia), Spain"]
[Date "2018.09.15"]
[Round "4.2"]
[White "Garcia, Jhoel"]
[Black "Campos Gambuti, Luis Maria"]
[Result "1/2-1/2"]
[TimeControl "7m+3s por jugada"]
[WhiteFideId "3801110"]
[BlackFideId "2226979"]
[WhiteElo "2250"]
[BlackElo "2382"]

1. d4 {[%clk 00:07:01]} {[%emt 00:00:08]} b6 {[%clk 00:07:03]} {[%emt
00:00:06]} 2. c4 {[%clk 00:07:04]} e6 {[%clk 00:07:03]} 3. Nf3 {[%clk
00:06:53]} {[%emt 00:00:11]} Bb7 {[%clk 00:06:52]} {[%emt 00:00:14]} 4. g3
{[%clk 00:06:55]} {[%emt 00:00:39]} d5 {[%clk 00:06:52]} 5. Bg2 {[%clk
00:06:50]} dxc4 {[%clk 00:06:53]} 6. Na3 {[%clk 00:06:03]} {[%emt 00:00:47]}
Bxa3 {[%clk 00:06:54]} 7. Qa4+ {[%clk 00:06:04]} Nd7 {[%clk 00:06:42]} 8. Qxa3
{[%clk 00:06:05]} {[%emt 00:00:03]} Ne7 {[%clk 00:05:39]} {[%emt 00:01:19]} 9.
O-O {[%clk 00:05:31]} {[%emt 00:00:23]} h6 {[%clk 00:05:25]} {[%emt 00:00:18]}
10. Qc3 {[%clk 00:05:33]} {[%emt 00:00:03]} b5 {[%clk 00:05:23]} 11. b3 {[%clk
00:04:55]} {[%emt 00:00:40]} Nb6 {[%clk 00:04:59]} {[%emt 00:00:26]} 12. a4
{[%clk 00:04:16]} {[%emt 00:00:43]} a6 {[%clk 00:04:51]} {[%emt 00:00:11]} 13.
a5 {[%clk 00:03:49]} {[%emt 00:00:29]} Nbd5 {[%clk 00:04:41]} {[%emt 00:00:13]}
14. Qc2 {[%clk 00:03:50]} {[%emt 00:00:05]} c3 {[%clk 00:03:57]} {[%emt
00:00:44]} 15. Ne5 {[%clk 00:02:42]} {[%emt 00:01:18]} O-O {[%clk 00:03:02]}
{[%emt 00:00:50]} 16. Nd3 {[%clk 00:02:12]} {[%emt 00:00:33]} b4 {[%clk
00:02:42]} {[%emt 00:00:23]} 17. Rd1 {[%clk 00:01:50]} {[%emt 00:00:33]} Rb8
{[%clk 00:02:31]} {[%emt 00:00:12]} 18. e4 {[%clk 00:01:51]} Nf6 {[%clk
00:02:22]} {[%emt 00:00:10]} 19. Nxb4 {[%emt 00:00:08]} Bxe4 {[%clk 00:02:15]}
{[%emt 00:00:09]} 20. Bxe4 {[%clk 00:01:50]} {[%emt 00:00:03]} Nxe4 {[%clk
00:02:13]} {[%emt 00:00:08]} 21. Nxa6 {[%clk 00:00:59]} {[%emt 00:00:52]} Qd5
{[%clk 00:02:13]} 22. Nxb8 {[%clk 00:00:51]} {[%emt 00:00:32]} Rxb8 {[%clk
00:02:15]} {[%emt 00:00:03]} 23. a6 {[%clk 00:00:35]} Nc6 {[%clk 00:02:10]}
{[%emt 00:00:06]} 24. f3 {[%clk 00:00:33]} {[%emt 00:00:07]} Nd6 {[%clk
00:01:45]} {[%emt 00:00:21]} 25. a7 {[%clk 00:00:31]} {[%emt 00:00:36]} Ra8
{[%clk 00:01:43]} 26. Qxc3 {[%clk 00:00:32]} Rxa7 {[%clk 00:01:36]} {[%emt
00:00:04]} 27. Rxa7 {[%clk 00:00:32]} Nxa7 {[%clk 00:01:38]} 28. Bf4 {[%clk
00:00:29]} Nab5 {[%clk 00:01:32]} {[%emt 00:00:03]} 29. Qd3 {[%clk 00:00:30]}
{[%emt 00:00:03]} Nf5 {[%clk 00:01:29]} {[%emt 00:00:06]} 30. Be5 {[%clk
00:00:26]} {[%emt 00:00:11]} f6 {[%clk 00:01:25]} {[%emt 00:00:03]} 31. Bf4
{[%clk 00:00:27]} Nfxd4 {[%clk 00:01:18]} {[%emt 00:00:10]} 32. Kg2 {[%clk
00:00:25]} {[%emt 00:00:05]} c6 {[%clk 00:01:10]} {[%emt 00:00:10]} 33. Ra1
{[%clk 00:00:24]} {[%emt 00:00:07]} Qxb3 {[%clk 00:00:57]} {[%emt 00:00:14]} 34.
Ra8+ {[%clk 00:00:24]} {[%emt 00:00:03]} Kf7 {[%clk 00:00:59]} 35. Qxb3 {[%clk
00:00:15]} {[%emt 00:00:10]} Nxb3 {[%clk 00:01:00]} {[%emt 00:00:11]} 36. Be3
{[%clk 00:00:18]} N3d4 {[%clk 00:00:56]} 37. Bxd4 {[%clk 00:00:20]} {[%emt
00:00:07]} Nxd4 {[%clk 00:00:58]} 38. Ra7+ {[%clk 00:00:22]} {[%emt 00:00:04]}
Kg6 {[%clk 00:00:53]} {[%emt 00:00:04]} 39. Kf2 {[%clk 00:00:24]} e5 {[%clk
00:00:52]} 40. g4 {[%clk 00:00:26]} {[%emt 00:00:03]} h5 {[%clk 00:00:46]}
{[%emt 00:00:12]} 41. h3 {[%clk 00:00:27]} {[%emt 00:00:06]} h4 {[%clk
00:00:48]} 42. Ke3 {[%clk 00:00:28]} Ne6 {[%clk 00:00:48]} {[%emt 00:00:04]} 43.
Ra6 {[%clk 00:00:18]} {[%emt 00:00:06]} Nf4 {[%clk 00:00:49]} {[%emt 00:00:31]}
44. Rxc6 Nxh3 {[%clk 00:00:51]} 45. Rc8 {[%clk 00:00:21]} Nf4 {[%clk 00:00:46]}
{[%emt 00:00:04]} 46. Rh8 {[%clk 00:00:20]} h3 {[%clk 00:00:42]} 47. Kf2 {[%clk
00:00:20]} Kf7 {[%clk 00:00:38]} {[%emt 00:00:03]} 48. Kg3 {[%clk 00:00:21]}
{[%emt 00:00:09]} g6 {[%clk 00:00:28]} {[%emt 00:00:12]} 49. Rh7+ {[%clk
00:00:22]} Ke6 {[%clk 00:00:30]} 50. Rh8 {[%clk 00:00:25]} f5 {[%clk 00:00:29]}
{[%emt 00:00:18]} 51. Re8+ {[%clk 00:00:24]} Kf7 {[%clk 00:00:31]} {[%emt
00:00:08]} 52. Rh8 {[%clk 00:00:27]} Kf6 {[%clk 00:00:27]} 53. Rf8+ {[%clk
00:00:25]} Kg5 {[%clk 00:00:29]} 54. gxf5 {[%clk 00:00:21]} gxf5 {[%clk
00:00:31]} 55. Re8 {[%clk 00:00:20]} {[%emt 00:00:07]} Kf6 {[%clk 00:00:33]} 56.
Ra8 {[%clk 00:00:20]} {[%emt 00:00:07]} Kf7 {[%clk 00:00:30]} 57. Ra6 {[%clk
00:00:22]} {[%emt 00:00:07]} Ke7 {[%clk 00:00:32]} 58. Rh6 {[%clk 00:00:23]}
Kf7 {[%clk 00:00:34]} 59. Rd6 {[%clk 00:00:25]} {[%emt 00:00:06]} Ke7 {[%clk
00:00:36]} 60. Rh6 {[%clk 00:00:27]} Kf7 {[%clk 00:00:38]} 61. Ra6 {[%clk
00:00:27]} {[%emt 00:00:04]} Kg7 {[%clk 00:00:38]} 62. Ra5 {[%clk 00:00:19]}
{[%emt 00:00:07]} Kf6 {[%clk 00:00:40]} {[%emt 00:00:11]} 63. Ra8 {[%clk
00:00:17]} {[%emt 00:00:17]} Kg5 {[%clk 00:00:40]} 64. Rg8+ {[%clk 00:00:19]}
Kf6 {[%clk 00:00:41]} 65. Rh8 {[%clk 00:00:20]} {[%emt 00:00:08]} Kg5 {[%emt
00:00:44]} 1/2-1/2

[Event "II Open Internacional Ateneo Marítimo (60 Aniversario)"]
[Site "C/La reina 68 (Valencia), Spain"]
[Date "2018.09.15"]
[Round "4.3"]
[White "Granero Roca, Antonio"]
[Black "Carbonell Sancho, Marc"]
[Result "0-1"]
[TimeControl "7m+3s por jugada"]
[WhiteFideId "2210509"]
[BlackFideId "32029969"]
[WhiteElo "2370"]
[BlackElo "2051"]

1. Nf3 {[%clk 00:07:04]} {[%emt 00:00:05]} Nf6 {[%clk 00:07:05]} 2. g3 {[%clk
00:07:06]} g6 {[%clk 00:07:07]} 3. Bg2 {[%clk 00:07:07]} Bg7 {[%clk 00:07:08]}
{[%emt 00:00:05]} 4. O-O {[%clk 00:07:08]} {[%emt 00:00:08]} O-O {[%clk
00:07:09]} 5. c4 {[%clk 00:07:10]} d6 {[%clk 00:07:10]} 6. Nc3 {[%clk
00:07:11]} {[%emt 00:00:04]} Nc6 {[%clk 00:07:12]} 7. d3 {[%clk 00:07:12]} e5
{[%clk 00:07:13]} {[%emt 00:00:05]} 8. a3 {[%clk 00:07:12]} a5 {[%clk
00:07:14]} 9. Rb1 {[%clk 00:07:14]} h6 {[%clk 00:07:13]} {[%emt 00:00:08]} 10.
Ne1 {[%clk 00:07:09]} {[%emt 00:00:05]} Be6 {[%clk 00:06:55]} {[%emt 00:00:20]}
11. Nd5 {[%clk 00:07:08]} {[%emt 00:00:05]} Rb8 {[%clk 00:06:38]} {[%emt
00:00:23]} 12. Nc2 {[%clk 00:07:09]} Nd7 {[%clk 00:06:37]} {[%emt 00:00:08]} 13.
b4 {[%clk 00:07:06]} axb4 {[%clk 00:06:38]} {[%emt 00:00:05]} 14. axb4 {[%clk
00:07:08]} f5 {[%clk 00:06:33]} {[%emt 00:00:05]} 15. b5 {[%clk 00:07:05]}
{[%emt 00:00:06]} Ne7 {[%clk 00:06:34]} {[%emt 00:00:05]} 16. Ncb4 {[%clk
00:06:57]} {[%emt 00:00:08]} Nc5 {[%clk 00:05:50]} {[%emt 00:00:52]} 17. Bd2
{[%clk 00:06:47]} {[%emt 00:00:08]} Kh7 {[%clk 00:04:48]} {[%emt 00:01:06]} 18.
Qc2 {[%clk 00:06:48]} {[%emt 00:00:05]} Ng8 {[%clk 00:04:44]} {[%emt 00:00:11]}
19. Ra1 {[%clk 00:06:40]} {[%emt 00:00:10]} h5 {[%clk 00:04:29]} {[%emt
00:00:11]} 20. h4 {[%clk 00:06:26]} {[%emt 00:00:21]} f4 {[%clk 00:04:17]}
{[%emt 00:00:10]} 21. Nc3 {[%clk 00:05:51]} {[%emt 00:00:39]} Qd7 {[%clk
00:03:42]} {[%emt 00:00:37]} 22. Nbd5 {[%clk 00:05:44]} {[%emt 00:00:10]} Bh3
{[%clk 00:03:36]} {[%emt 00:00:14]} 23. Ne4 {[%clk 00:05:38]} {[%emt 00:00:07]}
Bxg2 {[%clk 00:03:09]} {[%emt 00:00:33]} 24. Kxg2 {[%clk 00:05:32]} {[%emt
00:00:05]} Nxe4 {[%clk 00:03:09]} {[%emt 00:00:05]} 25. dxe4 {[%clk 00:05:34]}
Qg4 {[%clk 00:03:07]} {[%emt 00:00:05]} 26. Qd3 {[%clk 00:05:26]} {[%emt
00:00:09]} Bf6 {[%clk 00:02:32]} {[%emt 00:00:40]} 27. Nxc7 {[%clk 00:05:07]}
{[%emt 00:00:19]} Bxh4 {[%clk 00:02:28]} {[%emt 00:00:11]} 28. Qf3 {[%clk
00:05:09]} Qd7 {[%clk 00:02:01]} {[%emt 00:00:28]} 29. gxh4 {[%clk 00:04:34]}
{[%emt 00:00:57]} Qxc7 {[%clk 00:02:03]} 30. Bb4 {[%clk 00:04:18]} {[%emt
00:00:05]} Nf6 {[%clk 00:01:55]} {[%emt 00:00:05]} 31. Qd3 {[%clk 00:04:07]}
{[%emt 00:00:14]} Rbd8 {[%clk 00:01:56]} {[%emt 00:00:05]} 32. f3 {[%clk
00:04:08]} Rg8 {[%clk 00:01:58]} {[%emt 00:00:05]} 33. Rg1 {[%clk 00:03:57]}
{[%emt 00:00:10]} Qb6 {[%clk 00:01:41]} {[%emt 00:00:20]} 34. Ba5 {[%clk
00:03:42]} {[%emt 00:00:18]} Qc5 {[%clk 00:01:40]} {[%emt 00:00:04]} 35. Bxd8
{[%clk 00:03:38]} {[%emt 00:00:07]} Rxd8 {[%clk 00:01:42]} 36. Rgd1 {[%clk
00:03:02]} {[%emt 00:00:45]} g5 {[%clk 00:01:15]} {[%emt 00:00:25]} 37. Qa3
{[%clk 00:02:11]} {[%emt 00:00:53]} Qb6 {[%clk 00:01:04]} {[%emt 00:00:14]} 38.
c5 {[%clk 00:02:06]} {[%emt 00:00:14]} Qxb5 {[%clk 00:01:05]} 39. Rd3 {[%clk
00:01:51]} {[%emt 00:00:14]} gxh4 {[%clk 00:00:56]} {[%emt 00:00:13]} 40. Qa5
{[%clk 00:01:25]} {[%emt 00:00:32]} Rg8+ {[%clk 00:00:57]} 41. Kf2 {[%clk
00:01:11]} {[%emt 00:00:19]} Qb2 {[%clk 00:00:51]} {[%emt 00:00:06]} 42. Qa2
{[%clk 00:01:12]} {[%emt 00:00:05]} Qb4 {[%clk 00:00:51]} {[%emt 00:00:09]} 43.
Rc1 {[%clk 00:00:57]} {[%emt 00:00:09]} Rg7 {[%clk 00:00:37]} {[%emt 00:00:17]}
44. Qb3 {[%clk 00:00:43]} {[%emt 00:00:17]} Nxe4+ {[%clk 00:00:21]} {[%emt
00:00:19]} 45. fxe4 {[%clk 00:00:42]} {[%emt 00:00:05]} Qxe4 {[%clk 00:00:23]}
46. Rf3 {[%clk 00:00:39]} {[%emt 00:00:12]} Qd4+ {[%clk 00:00:25]} 47. e3
{[%clk 00:00:06]} {[%emt 00:00:34]} Qd2+ {[%clk 00:00:27]} 48. Kf1 {[%clk
00:00:08]} {[%emt 00:00:17]} Qxc1+ {[%clk 00:00:26]} 49. Ke2 {[%clk 00:00:09]}
Rg2+ {[%clk 00:00:28]} 50. Kd3 {[%clk 00:00:12]} Rg7 {[%clk 00:00:16]} {[%emt
00:00:06]} 51. Ke4 {[%clk 00:00:09]} {[%emt 00:00:10]} Qxc5 {[%clk 00:00:16]}
52. Qe6 {[%clk 00:00:08]} {[%emt 00:00:05]} Qc6+ {[%clk 00:00:18]} 53. Qd5
{[%clk 00:00:07]} {[%emt 00:00:09]} Qxd5+ {[%clk 00:00:17]} {[%emt 00:00:09]}
54. Kxd5 {[%clk 00:00:09]} Rg3 {[%clk 00:00:20]} 0-1